bitfinex/quotes_BTCUSD_20250522
["timestamp","ask_amount","ask_price","bid_price","bid_amount"]
[1747874904727,0.36262627,109620.0,109610.0,0.0005018]
[1747874905794,0.36062627,109620.0,109610.0,0.0005018]
[1747874906311,0.36262627,109620.0,109610.0,0.0005018]
[1747874906833,0.63614627,109620.0,109610.0,0.0005018]
[1747874908539,0.93233189,109620.0,109610.0,0.0005018]
[1747874908768,0.63614627,109620.0,109610.0,0.0005018]
[1747874910066,0.68614627,109620.0,109610.0,0.0005018]
[1747874910477,0.41262627,109620.0,109610.0,0.0005018]
[1747874910692,1.04642627,109620.0,109610.0,0.0005018]
[1747874911779,0.33062627,109620.0,109610.0,0.0005018]
[1747874912005,0.004,109620.0,109610.0,0.0005018]
[1747874912219,0.004,109620.0,109610.0,0.91922808]
[1747874912439,0.004,109620.0,109610.0,1.01326165]
[1747874912921,0.21883673,109670.0,109660.0,0.53149419]
[1747874913141,0.74918,109690.0,109680.0,0.00911734]
[1747874913363,0.79614584,109690.0,109680.0,0.20970036]
[1747874913583,0.52258584,109690.0,109680.0,0.41296588]
[1747874913796,0.87539327,109700.0,109680.0,0.77119999]
[1747874913985,0.22723791,109690.0,109680.0,0.56246506]
[1747874914192,0.22723791,109690.0,109680.0,0.7622043]
[1747874914405,0.02667286,109690.0,109680.0,0.78043825]
[1747874914626,0.30303921,109690.0,109680.0,0.36200304]
[1747874914835,0.36603921,109690.0,109680.0,0.34012124]
[1747874915041,0.42003921,109690.0,109680.0,0.00012124]
[1747874916108,1.10379921,109690.0,109680.0,0.00012124]
[1747874916319,1.10879921,109690.0,109680.0,0.00012124]
[1747874916760,1.41452568,109690.0,109680.0,0.00012124]
[1747874916961,1.11834006,109690.0,109680.0,0.00012124]
[1747874917179,1.10779921,109690.0,109680.0,0.00012124]
[1747874919651,1.09979921,109690.0,109680.0,0.00012124]
[1747874919874,1.10179921,109690.0,109680.0,0.00012124]
[1747874920082,1.10479921,109690.0,109680.0,0.00012124]
[1747874920304,1.06731921,109690.0,109680.0,0.00012124]
[1747874920800,1.07131921,109690.0,109680.0,0.00012124]
[1747874922260,1.07631921,109690.0,109680.0,0.00012124]
[1747874922455,0.36203921,109690.0,109680.0,0.00012124]
[1747874922740,1.04571921,109690.0,109680.0,0.00012124]
[1747874924119,1.10341921,109690.0,109680.0,0.00012124]
[1747874924320,1.09941921,109690.0,109680.0,0.00012124]
[1747874924740,1.11496006,109690.0,109680.0,0.00012124]
[1747874924944,1.12496006,109690.0,109680.0,0.00012124]
[1747874925198,1.42114568,109690.0,109680.0,0.00012124]
[1747874925680,1.42314568,109690.0,109680.0,0.00012124]
[1747874926115,1.42214568,109690.0,109680.0,0.00012124]
[1747874926326,1.42314568,109690.0,109680.0,0.00012124]
[1747874926543,1.13096006,109690.0,109680.0,0.00012124]
[1747874926960,1.13196006,109690.0,109680.0,0.00012124]
[1747874927341,1.13796006,109690.0,109680.0,0.00012124]
[1747874927977,1.43414568,109690.0,109680.0,0.00012124]
[1747874928198,0.19155323,109630.0,109620.0,0.07308272]
[1747874928418,0.19155323,109630.0,109620.0,0.07358452]
[1747874928877,0.19155323,109630.0,109620.0,0.41358452]
[1747874929123,0.19155323,109630.0,109620.0,0.47836449]
[1747874929305,0.19155323,109630.0,109620.0,0.48036449]
[1747874930085,0.19155323,109630.0,109620.0,0.48336449]
[1747874930507,0.2855868,109630.0,109620.0,0.0055818]
[1747874930902,0.3475868,109630.0,109620.0,0.0055818]
[1747874931936,0.3158868,109630.0,109620.0,0.0055818]
[1747874932087,0.2855868,109630.0,109620.0,0.0035818]
[1747874932484,0.2875868,109630.0,109620.0,0.0035818]
[1747874932695,0.2875868,109630.0,109620.0,0.0005818]
[1747874932924,0.2885868,109630.0,109620.0,0.0005818]
[1747874933317,0.97958814,109630.0,109620.0,0.0005818]
[1747874933549,0.9704668,109630.0,109620.0,0.0005818]
[1747874933926,1.0340668,109630.0,109620.0,0.0005818]
[1747874934735,1.04860765,109630.0,109620.0,0.0005818]
[1747874935618,1.05708129,109630.0,109620.0,0.0005818]
[1747874936546,1.10708129,109630.0,109620.0,0.0005818]
[1747874936786,1.09254044,109630.0,109620.0,0.0005818]
[1747874938637,1.10708129,109630.0,109620.0,0.0005818]
[1747874939663,1.10612129,109630.0,109620.0,0.0005818]
[1747874940109,1.10812129,109630.0,109620.0,0.0005818]
[1747874940286,1.10612129,109630.0,109620.0,0.0005818]
[1747874940487,1.11012129,109630.0,109620.0,0.0005818]
[1747874946680,1.41630691,109630.0,109620.0,0.0005818]
[1747874947153,2.10700691,109630.0,109620.0,0.0005818]
[1747874947836,1.76497202,109630.0,109620.0,0.0005818]
[1747874949499,1.76097202,109630.0,109620.0,0.0005818]
[1747874949902,1.76397202,109630.0,109620.0,0.0005818]
[1747874950114,1.81186364,109630.0,109620.0,0.0005818]
[1747874950292,1.75697202,109630.0,109620.0,0.0005818]
[1747874950885,0.55611155,109620.0,109610.0,0.001]
[1747874951090,1.01960438,109620.0,109610.0,0.001]
[1747874952223,1.02160438,109620.0,109610.0,0.001]
[1747874952622,1.02460438,109620.0,109610.0,0.001]
[1747874953040,1.08116111,109620.0,109610.0,0.001]
[1747874953350,1.03326949,109620.0,109610.0,0.001]
[1747874954978,1.03126949,109620.0,109610.0,0.001]
[1747874955182,1.02126949,109620.0,109610.0,0.001]
[1747874955377,1.02226949,109620.0,109610.0,0.002]
[1747874955584,1.02626949,109620.0,109610.0,0.002]
[1747874955802,0.19167562,109560.0,109550.0,0.06704589]
[1747874956009,0.29483635,109560.0,109550.0,0.64032861]
[1747874956420,0.29483635,109560.0,109550.0,0.59402861]
[1747874956636,0.29483635,109560.0,109550.0,0.48012861]
[1747874956839,0.28570919,109560.0,109550.0,0.59402861]
[1747874957044,0.28570919,109560.0,109550.0,0.65368314]
[1747874957225,0.28570919,109560.0,109550.0,0.65868314]
[1747874958031,0.27758194,109560.0,109550.0,0.66368314]
[1747874958248,0.22005678,109560.0,109550.0,0.66368314]
[1747874958813,0.20180303,109560.0,109550.0,0.66368314]
[1747874959275,0.28670935,109560.0,109550.0,0.35005167]
[1747874959496,0.28670935,109560.0,109550.0,0.01005167]
[1747874961303,0.28570935,109560.0,109550.0,0.00505167]
[1747874961531,0.55934935,109560.0,109550.0,0.00505167]
[1747874961742,0.55934935,109560.0,109550.0,0.00905167]
[1747874962163,0.55934935,109560.0,109550.0,0.00405167]
[1747874962372,0.55934935,109560.0,109550.0,0.00605167]
[1747874962575,0.96630935,109560.0,109550.0,0.00605167]
[1747874964210,0.96730935,109560.0,109550.0,0.00605167]
[1747874967333,1.26536008,109560.0,109550.0,0.00605167]
[1747874968147,1.0455502,109560.0,109550.0,0.00605167]
[1747874968371,1.0555502,109560.0,109550.0,0.00205167]
[1747874968559,1.0555502,109560.0,109550.0,0.00305167]
[1747874969160,1.0555502,109560.0,109550.0,0.00105167]
[1747874969942,1.0575502,109560.0,109550.0,0.00105167]
[1747874970363,1.0575502,109560.0,109550.0,5.167e-05]
[1747874970567,1.0585502,109560.0,109550.0,5.167e-05]
[1747874973134,1.1085502,109560.0,109550.0,5.167e-05]
[1747874973369,1.32852008,109560.0,109550.0,5.167e-05]
[1747874974252,1.33717706,109560.0,109550.0,5.167e-05]
[1747874976675,1.55698694,109560.0,109550.0,5.167e-05]
[1747874976878,1.33717706,109560.0,109550.0,5.167e-05]
[1747874977270,1.67717706,109560.0,109550.0,5.167e-05]
[1747874977484,1.89698694,109560.0,109550.0,5.167e-05]
[1747874977689,1.89698694,109560.0,109540.0,0.00039597]
[1747874977690,0.20169311,109550.0,109540.0,0.00039597]
[1747874977856,0.97323656,109550.0,109540.0,0.00043616]
[1747874978689,0.98189354,109550.0,109540.0,0.00043616]
[1747874979099,0.98189354,109550.0,109540.0,0.00143616]
[1747874979967,2.02713439,109550.0,109530.0,0.02]
[1747874980180,1.83875923,109540.0,109530.0,0.01308866]
[1747874980392,1.83590479,109540.0,109530.0,0.01308866]
[1747874980575,1.93202479,109540.0,109530.0,0.01023391]
[1747874981911,1.95519908,109540.0,109530.0,0.01023391]
[1747874982333,1.95519908,109540.0,109530.0,0.00293273]
[1747874982757,0.20094935,109480.0,109470.0,0.07308272]
[1747874982974,0.97598292,109480.0,109470.0,0.4132055]
[1747874983653,0.97598292,109480.0,109470.0,0.4448055]
[1747874983872,1.02387454,109480.0,109470.0,0.4498055]
[1747874984083,0.97698292,109480.0,109470.0,0.4538055]
[1747874984291,0.97698292,109480.0,109470.0,0.4222055]
[1747874984482,0.97698292,109480.0,109470.0,0.4549055]
[1747874984681,0.97698292,109480.0,109470.0,0.34912278]
[1747874985190,0.97598292,109480.0,109470.0,0.34012278]
[1747874985402,0.97698292,109480.0,109470.0,0.34512278]
[1747874985619,0.97698292,109480.0,109470.0,0.38102278]
[1747874987321,0.70314292,109480.0,109470.0,0.38102278]
[1747874987538,0.97702292,109480.0,109470.0,0.41192278]
[1747874989211,0.286849,109480.0,109470.0,0.41192278]
[1747874989422,0.21108259,109480.0,109470.0,0.61154078]
[1747874989633,0.19281509,109480.0,109470.0,0.82164331]
[1747874989850,0.19281526,109480.0,109470.0,0.91567696]
[1747874990270,0.001,109480.0,109470.0,0.91667696]
[1747874990559,0.001,109480.0,109470.0,0.92581129]
[1747874990778,0.48395208,109500.0,109490.0,0.4039]
[1747874990979,0.48395208,109500.0,109490.0,0.603518]
[1747874991181,0.47481983,109500.0,109490.0,0.68305052]
[1747874991400,0.21007225,109500.0,109490.0,0.68305052]
[1747874991643,0.20093983,109500.0,109490.0,0.68305052]
[1747874992273,0.21107133,109500.0,109490.0,0.69618377]
[1747874992456,0.21107133,109500.0,109490.0,0.68705052]
[1747874992675,0.21107133,109500.0,109490.0,0.68905052]
[1747874992919,0.22020358,109500.0,109490.0,0.68905052]
[1747874993331,0.20194009,109500.0,109490.0,0.68905052]
[1747874994781,0.29597366,109500.0,109490.0,0.48943252]
[1747874994984,0.29597366,109500.0,109490.0,0.60305952]
[1747874996210,0.29597366,109500.0,109490.0,0.59320952]
[1747874997319,0.29597366,109500.0,109490.0,0.0699]
[1747874997494,0.29597366,109500.0,109490.0,0.006]
[1747874999034,0.18269845,109470.0,109460.0,0.18685884]
[1747874999235,0.18269845,109470.0,109460.0,0.38697741]
[1747874999434,0.18269845,109470.0,109460.0,0.48101098]
[1747874999635,0.21923663,109470.0,109460.0,0.48101098]
[1747875000018,0.21923663,109470.0,109460.0,0.48601098]
[1747875000247,0.22023663,109470.0,109460.0,0.49301098]
[1747875000453,0.21110171,109470.0,109460.0,0.49301098]
[1747875001075,0.001,109470.0,109460.0,0.70313238]
[1747875001282,0.1928327,109470.0,109460.0,0.69399729]
[1747875001510,0.48392243,109480.0,109460.0,0.70526754]
[1747875001717,0.19181518,109480.0,109470.0,0.199618]
[1747875001923,0.21008243,109480.0,109470.0,0.26964475]
[1747875002195,0.22835034,109480.0,109470.0,0.33174475]
[1747875002361,0.20094967,109480.0,109470.0,0.261718]
[1747875002562,0.20094967,109480.0,109470.0,0.230018]
[1747875002776,0.20094967,109480.0,109470.0,0.199618]
[1747875002971,0.20094967,109480.0,109470.0,0.230018]
[1747875003171,0.20094967,109480.0,109470.0,0.30184398]
[1747875003380,0.18267931,109490.0,109480.0,0.0608]
[1747875003554,0.45655931,109490.0,109480.0,0.260418]
[1747875003927,0.21007798,109490.0,109480.0,0.260418]
[1747875004115,0.18267931,109490.0,109480.0,0.260418]
[1747875004384,0.21007764,109490.0,109480.0,0.34865263]
[1747875004593,0.21007814,109490.0,109480.0,0.34865263]
[1747875004818,0.18367576,109500.0,109480.0,0.47053439]
[1747875005045,0.49408375,109500.0,109490.0,0.263718]
[1747875005288,0.47582034,109500.0,109490.0,0.263718]
[1747875005491,0.47582034,109500.0,109490.0,0.29901326]
[1747875005878,0.47172034,109500.0,109490.0,0.29901326]
[1747875007266,0.47272034,109500.0,109490.0,0.29901326]
[1747875007468,0.47272034,109500.0,109490.0,0.63901326]
[1747875009702,0.47272034,109500.0,109490.0,0.60801326]
[1747875009964,0.46358809,109500.0,109490.0,0.57491326]
[1747875010180,0.19378031,109500.0,109490.0,0.64011326]
[1747875010403,0.20291189,109500.0,109490.0,0.64924634]
[1747875010633,0.19378006,109500.0,109490.0,0.65837934]
[1747875010844,0.19378006,109500.0,109490.0,0.83191142]
[1747875011029,0.20191189,109500.0,109490.0,0.82277834]
[1747875011257,0.20191265,109500.0,109490.0,0.64011326]
[1747875011512,0.19278065,109500.0,109490.0,0.545618]
[1747875012331,0.19278065,109500.0,109490.0,0.50552]
[1747875013539,0.1836484,109500.0,109490.0,0.50552]
[1747875013750,0.1865,109500.0,109490.0,0.50552]
[1747875013962,0.1865,109500.0,109490.0,0.58045594]
[1747875015243,0.1865,109500.0,109490.0,0.50552]
[1747875015446,0.1865,109500.0,109490.0,0.44916]
[1747875017363,0.1865,109500.0,109490.0,0.346]
[1747875017569,0.1865,109500.0,109490.0,0.545618]
[1747875019807,0.47575231,109500.0,109490.0,0.74654933]
[1747875020006,0.49401656,109500.0,109490.0,0.87218298]
[1747875020321,0.49401656,109500.0,109490.0,0.68038482]
[1747875020530,0.50314898,109500.0,109490.0,0.68951799]
[1747875020772,0.50314898,109500.0,109490.0,0.68038482]
[1747875020925,0.50314898,109500.0,109490.0,0.67125157]
[1747875021135,0.4848844,109500.0,109490.0,0.85391665]
[1747875021299,0.49401673,109500.0,109490.0,0.67125157]
[1747875022410,0.49401673,109500.0,109490.0,0.63965157]
[1747875022807,0.22017673,109500.0,109490.0,0.63965157]
[1747875023017,0.47575298,109500.0,109490.0,0.63965157]
[1747875024238,0.47475298,109500.0,109490.0,0.63965157]
[1747875025138,0.48388498,109500.0,109490.0,0.63965157]
[1747875025344,0.4930174,109500.0,109490.0,0.63965157]
[1747875025561,0.4940174,109500.0,109490.0,0.64878482]
[1747875026133,0.4940174,109500.0,109490.0,0.63965157]
[1747875027655,0.4940174,109500.0,109490.0,0.90338274]
[1747875027656,0.4574884,109500.0,109490.0,0.90338274]
[1747875027856,0.48488413,109500.0,109490.0,0.89424982]
[1747875028078,0.49401646,109500.0,109490.0,0.9033829]
[1747875028278,0.49401646,109500.0,109490.0,0.63965157]
[1747875028479,0.50314888,109500.0,109490.0,0.64878482]
[1747875028680,0.22017722,109500.0,109490.0,0.63965157]
[1747875028885,0.19639362,109540.0,109490.0,0.63965157]
[1747875028886,0.07350396,109550.0,109540.0,0.34]
[1747875029096,0.40606078,109550.0,109540.0,0.59309962]
[1747875029304,0.32115519,109550.0,109540.0,0.60222853]
[1747875029511,0.50372022,109550.0,109540.0,0.60100692]
[1747875029714,0.31947931,109550.0,109540.0,0.81097503]
[1747875029923,0.31947931,109550.0,109540.0,0.82010353]
[1747875029924,0.31035107,109550.0,109540.0,0.82010353]
[1747875030096,0.20282136,109550.0,109540.0,0.59195832]
[1747875030307,0.47662136,109550.0,109540.0,0.59195832]
[1747875030716,0.70963765,109550.0,109540.0,8.048e-05]
[1747875030916,0.4503785,109550.0,109540.0,8.048e-05]
[1747875031144,1.1474185,109550.0,109540.0,8.048e-05]
[1747875031348,1.1474185,109550.0,109540.0,0.00108048]
[1747875031551,1.14549851,109550.0,109540.0,0.00108048]
[1747875031767,1.14549851,109550.0,109540.0,8.048e-05]
[1747875032626,1.07241579,109550.0,109540.0,8.048e-05]
[1747875032968,1.07441579,109550.0,109540.0,8.048e-05]
[1747875033206,1.09010585,109550.0,109540.0,0.00108048]
[1747875033662,0.82230585,109550.0,109540.0,0.00108048]
[1747875033789,1.061565,109550.0,109540.0,0.00108048]
[1747875034595,1.05287494,109550.0,109540.0,0.00108048]
[1747875036201,0.37583494,109550.0,109540.0,0.00108048]
[1747875036608,1.05287494,109550.0,109540.0,0.00108048]
[1747875037063,0.37583494,109550.0,109540.0,0.34108048]
[1747875037269,0.39204141,109550.0,109540.0,0.55104867]
[1747875037467,0.28888001,109550.0,109540.0,0.75979517]
[1747875037674,0.01508001,109550.0,109540.0,0.75979517]
[1747875037984,0.00920751,109550.0,109540.0,0.79039517]
[1747875038207,0.00508001,109550.0,109540.0,0.79139517]
[1747875038403,0.00508001,109550.0,109540.0,0.91772874]
[1747875038804,0.00920751,109550.0,109540.0,0.91672874]
[1747875039179,0.00408001,109550.0,109540.0,0.91672874]
[1747875039572,8.001e-05,109550.0,109540.0,0.91672874]
[1747875039803,8.001e-05,109550.0,109540.0,0.91872874]
[1747875040686,8.001e-05,109550.0,109540.0,0.91972874]
[1747875042445,8.001e-05,109550.0,109540.0,0.85582874]
[1747875042657,8.001e-05,109550.0,109540.0,0.88842874]
[1747875043292,8.001e-05,109550.0,109540.0,0.91972874]
[1747875043510,0.2848865,109570.0,109560.0,0.54992961]
[1747875043511,0.02025191,109570.0,109560.0,0.54992961]
[1747875043717,0.02937816,109570.0,109560.0,0.8278812]
[1747875043985,0.02025191,109570.0,109560.0,0.8278812]
[1747875044239,0.02937807,109570.0,109560.0,0.8278812]
[1747875044646,0.002,109570.0,109560.0,0.8278812]
[1747875044870,0.01312591,109570.0,109560.0,0.8604812]
[1747875045086,0.01312591,109570.0,109560.0,0.8278812]
[1747875045261,0.01312591,109570.0,109560.0,0.83769584]
[1747875045522,0.002,109570.0,109560.0,0.83769584]
[1747875045749,0.002,109570.0,109560.0,0.90529584]
[1747875046191,0.004,109570.0,109560.0,0.90529584]
[1747875046418,0.01312583,109570.0,109560.0,0.90529584]
[1747875046883,0.004,109570.0,109560.0,0.90429584]
[1747875047373,0.004,109570.0,109560.0,0.90629584]
[1747875047593,0.41428467,109590.0,109560.0,0.90629584]
[1747875047594,0.8978764,109590.0,109580.0,0.19164071]
[1747875047803,0.48559223,109590.0,109580.0,0.45310064]
[1747875048014,0.20274781,109590.0,109580.0,0.45310064]
[1747875048649,0.2876568,109590.0,109580.0,0.06184193]
[1747875048810,0.35385839,109590.0,109580.0,0.06184193]
[1747875049214,0.01825257,109570.0,109560.0,0.08814823]
[1747875049410,0.01825257,109570.0,109540.0,0.09603357]
[1747875049411,0.20082094,109550.0,109540.0,0.09603357]
[1747875049636,0.20082094,109550.0,109540.0,0.201618]
[1747875049835,0.47450094,109550.0,109540.0,0.3841997]
[1747875050035,0.29193533,109550.0,109540.0,0.76163749]
[1747875050242,0.31931949,109550.0,109540.0,0.75250899]
[1747875050443,0.48362919,109550.0,109540.0,0.40338033]
[1747875050643,0.48362919,109550.0,109540.0,0.80388451]
[1747875050863,0.20082136,109550.0,109540.0,0.81301334]
[1747875051072,0.20082136,109550.0,109540.0,0.825142]
[1747875051278,0.01825583,109550.0,109540.0,0.4982705]
[1747875051547,0.2219282,109550.0,109540.0,0.48001334]
[1747875051713,0.22820485,109550.0,109540.0,0.48001334]
[1747875051939,0.21907727,109550.0,109540.0,0.82914209]
[1747875052139,0.20994944,109550.0,109540.0,0.82914209]
[1747875052528,0.20082144,109550.0,109540.0,0.82001334]
[1747875052734,0.18256503,109550.0,109540.0,0.6191739]
[1747875052941,0.18541663,109550.0,109540.0,0.6191739]
[1747875053170,0.18541663,109550.0,109540.0,0.00908048]
[1747875053171,1.44860365,109550.0,109540.0,0.00908048]
[1747875053395,0.26625762,109530.0,109520.0,0.03206588]
[1747875053615,0.64851204,109530.0,109520.0,0.03215579]
[1747875053820,0.63397119,109530.0,109520.0,0.03215579]
[1747875054876,0.64750155,109530.0,109520.0,0.03215579]
[1747875055511,0.64750155,109530.0,109520.0,8.991e-05]
[1747875055740,0.64950155,109530.0,109520.0,8.991e-05]
[1747875056491,0.65250155,109530.0,109520.0,8.991e-05]
[1747875057887,0.37882155,109530.0,109520.0,8.991e-05]
[1747875058059,0.65258155,109530.0,109520.0,8.991e-05]
[1747875058264,0.63905119,109530.0,109520.0,8.991e-05]
[1747875058616,0.36529119,109530.0,109520.0,8.991e-05]
[1747875058818,0.63905119,109530.0,109520.0,8.991e-05]
[1747875060900,0.36529119,109530.0,109520.0,8.991e-05]
[1747875061154,0.47961762,109530.0,109520.0,8.991e-05]
[1747875061382,0.21498744,109530.0,109520.0,0.53970791]
[1747875061570,0.21498744,109530.0,109520.0,0.61468109]
[1747875061804,0.20585794,109530.0,109520.0,0.61468109]
[1747875062293,0.20585778,109530.0,109520.0,0.61468109]
[1747875062520,0.20385778,109530.0,109520.0,0.61468109]
[1747875062739,0.20085778,109530.0,109520.0,0.61468109]
[1747875062971,0.20085778,109530.0,109520.0,0.79729613]
[1747875063148,0.21098769,109530.0,109520.0,0.8155572]
[1747875063361,0.20185803,109530.0,109520.0,0.61468109]
[1747875063989,0.20185803,109530.0,109520.0,0.80642688]
[1747875064197,0.20185803,109530.0,109520.0,0.81555738]
[1747875064406,0.20185803,109530.0,109520.0,0.80642688]
[1747875064632,0.20185803,109530.0,109520.0,0.61468109]
[1747875065076,0.20185803,109530.0,109520.0,0.63294234]
[1747875065288,0.01925857,109530.0,109520.0,0.83381795]
[1747875065430,0.02838815,109530.0,109520.0,0.83381795]
[1747875065826,0.001,109530.0,109520.0,0.89561795]
[1747875066268,0.001,109530.0,109520.0,1.27795237]
[1747875067543,0.01825716,109540.0,109530.0,0.54998711]
[1747875067746,0.01925575,109550.0,109530.0,0.83450852]
[1747875067962,0.01925575,109550.0,109540.0,0.74958595]
[1747875067963,0.001,109550.0,109540.0,0.74958595]
[1747875068182,0.01012766,109550.0,109540.0,0.74958595]
[1747875068414,0.01925541,109550.0,109540.0,0.74958595]
[1747875068627,0.03751132,109550.0,109540.0,0.74958595]
[1747875068838,0.20467254,109550.0,109540.0,0.43403357]
[1747875069052,0.20182094,109550.0,109540.0,0.34]
[1747875069248,0.63021451,109550.0,109540.0,0.34]
[1747875069693,0.25311061,109540.0,109530.0,0.001]
[1747875069925,0.22252812,109530.0,109520.0,0.34008991]
[1747875070101,0.00912941,109530.0,109520.0,0.72232295]
[1747875070350,0.30114657,109540.0,109530.0,0.20998735]
[1747875070561,0.58689092,109540.0,109530.0,0.40960553]
[1747875070934,0.46645294,109550.0,109540.0,0.20083945]
[1747875071147,0.4755811,109550.0,109540.0,0.40045761]
[1747875071582,0.4755811,109550.0,109540.0,0.3913287]
[1747875071784,0.4755811,109550.0,109540.0,0.79967619]
[1747875071992,0.001,109550.0,109540.0,0.81793344]
[1747875072174,0.001,109550.0,109540.0,0.88273344]
[1747875072736,0.001,109550.0,109540.0,0.97676701]
[1747875072933,0.002,109550.0,109540.0,0.97676701]
[1747875073772,0.001,109550.0,109540.0,0.97676701]
[1747875074039,0.001,109550.0,109540.0,0.97776701]
[1747875074694,0.001,109550.0,109540.0,0.91296701]
[1747875075128,0.001,109550.0,109540.0,0.97836701]
[1747875075348,0.46741877,109570.0,109560.0,0.54992961]
[1747875075349,0.002,109570.0,109560.0,0.54992961]
[1747875075559,0.002,109570.0,109560.0,0.8278412]
[1747875076197,0.002,109570.0,109560.0,0.8928412]
[1747875076402,0.02937824,109570.0,109560.0,0.79218537]
[1747875076603,0.04150465,109570.0,109560.0,0.80240211]
[1747875077035,0.02025191,109570.0,109560.0,0.80240211]
[1747875077267,0.002,109570.0,109560.0,0.80340211]
[1747875077528,0.01112583,109570.0,109560.0,0.80340211]
[1747875077701,0.0293779,109570.0,109560.0,0.80340211]
[1747875078121,0.03850423,109570.0,109560.0,0.80340211]
[1747875078315,0.03850415,109570.0,109560.0,0.80340211]
[1747875078522,0.23016277,109570.0,109560.0,0.7760212]
[1747875078719,0.23016378,109570.0,109560.0,0.79427536]
[1747875078929,0.23016378,109570.0,109560.0,0.80340227]
[1747875079135,0.2210372,109570.0,109560.0,0.8125291]
[1747875079339,0.01112616,109570.0,109560.0,0.8125291]
[1747875079547,0.02937848,109570.0,109560.0,0.8125291]
[1747875079885,0.0293784,109570.0,109560.0,0.8125291]
[1747875080095,0.02025207,109570.0,109560.0,0.8125291]
[1747875080311,0.0293784,109570.0,109560.0,0.8125291]
[1747875080527,0.002,109570.0,109560.0,0.8125291]
[1747875080739,0.002,109570.0,109560.0,0.8447291]
[1747875081845,0.002,109570.0,109560.0,0.8125291]
[1747875082495,0.03850431,109570.0,109560.0,0.8125291]
[1747875082708,0.22103602,109570.0,109560.0,0.5631805]
[1747875082915,0.27411019,109570.0,109560.0,0.73468545]
[1747875083100,0.27411019,109570.0,109560.0,0.74381261]
[1747875083603,0.27411019,109570.0,109560.0,0.75293969]
[1747875084229,0.27411019,109570.0,109560.0,0.75393969]
[1747875084431,0.27411019,109570.0,109560.0,0.75293969]
[1747875084641,0.27411019,109570.0,109560.0,0.75393969]
[1747875085037,0.22103669,109570.0,109560.0,0.7630666]
[1747875085234,0.22103669,109570.0,109560.0,0.7630661]
[1747875085678,0.22103669,109570.0,109560.0,0.77269901]
[1747875085991,0.22103669,109570.0,109560.0,0.54451541]
[1747875085992,0.2119112,109570.0,109560.0,0.54451541]
[1747875086132,0.26748479,109570.0,109560.0,0.43101641]
[1747875086347,0.26748479,109570.0,109560.0,0.83143703]
[1747875086549,0.26748479,109570.0,109560.0,0.83143719]
[1747875086755,0.20278378,109570.0,109560.0,0.84056427]
[1747875086952,0.21191019,109570.0,109560.0,0.44014366]
[1747875087181,0.23278428,109570.0,109560.0,0.73832419]
[1747875087527,0.23278428,109570.0,109560.0,0.74745127]
[1747875087751,0.02025257,109570.0,109560.0,0.7565781]
[1747875087962,0.02025257,109570.0,109560.0,0.75657827]
[1747875087963,0.21191086,109570.0,109560.0,0.75657827]
[1747875088368,0.24191086,109570.0,109560.0,0.75657827]
[1747875088721,0.24191086,109570.0,109560.0,0.74745127]
[1747875089202,0.25555829,109570.0,109560.0,0.53752141]
[1747875089412,0.25555829,109570.0,109560.0,0.53691982]
[1747875089607,0.25555829,109570.0,109560.0,0.48375791]
[1747875089837,0.08215274,109570.0,109560.0,0.69368752]
[1747875090037,0.03850532,109570.0,109560.0,0.69368752]
[1747875090241,0.02025183,109570.0,109560.0,0.69368752]
[1747875090456,0.02025183,109570.0,109560.0,0.78412393]
[1747875090608,0.02937799,109570.0,109560.0,0.78412393]
[1747875090809,0.002,109570.0,109560.0,0.78412393]
[1747875091404,0.01112591,109570.0,109560.0,0.78412393]
[1747875091851,0.02025207,109570.0,109560.0,0.78412393]
[1747875092035,0.21191019,109570.0,109560.0,0.7749971]
[1747875092271,0.27761019,109570.0,109560.0,0.7749971]
[1747875092448,0.26848428,109570.0,109560.0,0.57419432]
[1747875092704,0.26848428,109570.0,109560.0,0.56756973]
[1747875092915,0.26848428,109570.0,109560.0,0.75924543]
[1747875093203,0.09507907,109570.0,109560.0,0.77749934]
[1747875094628,0.28673736,109570.0,109560.0,0.76837251]
[1747875094835,0.28673736,109570.0,109560.0,0.77749951]
[1747875095056,0.63615836,109570.0,109560.0,0.00308991]
[1747875096064,0.63615836,109570.0,109560.0,0.00208991]
[1747875096650,0.63615836,109570.0,109560.0,0.00108991]
[1747875097068,0.63715836,109570.0,109560.0,0.00108991]
[1747875097913,0.63715836,109570.0,109560.0,0.54070791]
[1747875098732,0.63715836,109570.0,109560.0,0.6167204]
[1747875100111,0.63715836,109570.0,109560.0,0.5376784]
[1747875100306,0.63715836,109570.0,109560.0,0.34108991]
[1747875106319,0.28869178,109570.0,109560.0,0.34108991]
[1747875106556,0.28869178,109570.0,109560.0,0.75063744]
[1747875106557,0.02125225,109570.0,109560.0,0.75063744]
[1747875106770,0.003,109570.0,109560.0,0.75063744]
[1747875106986,0.03950482,109570.0,109560.0,0.75063761]
[1747875107202,0.03950482,109570.0,109560.0,0.84467118]
[1747875107427,0.03037824,109570.0,109560.0,0.85379801]
[1747875107878,0.03037824,109570.0,109560.0,0.85379809]
[1747875108099,0.03950465,109570.0,109560.0,0.86292492]
[1747875108307,0.03950465,109570.0,109560.0,0.85379809]
[1747875108501,0.03950465,109570.0,109560.0,0.86292492]
[1747875108653,0.03950465,109570.0,109560.0,0.85379809]
[1747875108853,0.03950465,109570.0,109560.0,0.84467118]
[1747875109237,0.03037824,109570.0,109560.0,0.84467118]
[1747875109448,0.22203645,109570.0,109560.0,0.8264171]
[1747875111125,0.22203645,109570.0,109560.0,0.63474148]
[1747875111337,0.20378454,109570.0,109560.0,0.63474148]
[1747875111551,0.20378454,109570.0,109560.0,0.60420948]
[1747875111760,0.21291062,109570.0,109560.0,0.81413942]
[1747875111977,0.2220372,109570.0,109560.0,0.80501259]
[1747875112186,0.21291112,109570.0,109560.0,0.80501259]
[1747875112401,0.21291112,109570.0,109560.0,0.61333689]
[1747875113030,0.21291112,109570.0,109560.0,0.60420948]
[1747875113237,0.20378479,109570.0,109560.0,0.55423448]
[1747875113658,0.20378479,109570.0,109560.0,0.34108991]
[1747875113659,0.34999186,109570.0,109560.0,0.34108991]
[1747875114511,0.34999186,109570.0,109560.0,0.34208991]
[1747875116584,0.56237186,109570.0,109560.0,0.54170791]
[1747875116792,0.56237186,109570.0,109560.0,0.55083532]
[1747875116971,0.55324528,109570.0,109560.0,0.54170791]
[1747875117174,0.55324528,109570.0,109560.0,0.61778614]
[1747875117327,0.55324528,109570.0,109560.0,0.62691355]
[1747875117550,0.56237178,109570.0,109560.0,0.81858892]
[1747875117826,0.01212616,109570.0,109560.0,0.82771575]
[1747875118033,0.21291028,109570.0,109560.0,0.61778614]
[1747875118237,0.20378462,109570.0,109560.0,0.41816814]
[1747875118445,0.25615821,109570.0,109560.0,0.41816814]
[1747875118627,0.35019178,109570.0,109560.0,0.41816814]
[1747875119091,0.35019178,109570.0,109560.0,0.61778614]
[1747875121601,0.01212591,109570.0,109560.0,0.82771575]
[1747875121818,0.02125199,109570.0,109560.0,0.82771575]
[1747875122027,0.0486309,109570.0,109560.0,0.82771583]
[1747875122669,0.03037824,109570.0,109560.0,0.83684266]